bitfinex-derivatives/quotes_ETHF0:USTF0_20260120
["timestamp","ask_amount","ask_price","bid_price","bid_amount"]
[1768923167508,0.1679263,3032.5,3032.4,2.14124302]
[1768923167901,0.0028963,3032.5,3031.9,0.0024881]
[1768923168202,0.16505,3032.2,3031.9,0.0024881]
[1768923170403,0.26280702,3033.5,3031.9,0.0024881]
[1768923170404,0.16501,3032.9,3031.9,0.0024881]
[1768923170611,0.16502,3032.8,3031.9,0.0024881]
[1768923171207,0.16502,3032.8,3031.9,3.5473416]
[1768923171400,0.16776547,3032.8,3031.9,3.5473416]
[1768923172609,0.16494,3034.2,3032.8,3.5448535]
[1768923172807,3.55798097,3035.1,3032.8,3.5448535]
[1768923172808,0.16495,3034.1,3032.8,3.5448535]
[1768923173309,0.16496,3033.8,3032.4,2.517]
[1768923173498,0.16496,3033.8,3032.5,3.5448535]
[1768923173499,0.16761391,3033.8,3032.5,3.5448535]
[1768923173902,0.16497,3033.6,3032.5,3.5448535]
[1768923176409,0.16498,3033.5,3032.5,3.5448535]
[1768923177107,0.16498,3033.5,3032.5,6.0668535]
[1768923178504,0.16498,3033.5,3032.5,6.0698535]
[1768923179021,0.00265391,3033.8,3032.6,3.5448535]
[1768923179412,0.16495,3034.0,3032.6,3.5448535]
[1768923180515,0.16750832,3034.0,3032.6,3.5448535]
[1768923180717,0.16493,3034.4,3032.9,3.5448535]
[1768923180911,3.55798097,3035.1,3032.5,2.525]
[1768923180912,0.16491,3034.8,3033.4,3.5448535]
[1768923181210,0.16491,3034.7,3033.6,3.5448535]
[1768923181411,3.55798097,3036.1,3033.6,3.5448535]
[1768923181605,0.1649,3035.0,3033.6,3.5448535]
[1768923181804,0.16491,3034.8,3033.6,3.5448535]
[1768923182013,0.16732218,3035.0,3033.6,3.5448535]
[1768923182208,0.1649,3034.9,3033.6,3.5448535]
[1768923182410,0.16491,3034.8,3033.7,2.528]
[1768923182607,0.16491,3034.8,3033.8,3.5448535]
[1768923183014,0.00242218,3035.0,3033.8,5.31005108]
[1768923183212,0.00242218,3035.0,3033.9,3.5448535]
[1768923183708,0.16492,3034.5,3034.0,2.528]
[1768923184108,0.16493,3034.4,3033.4,3.5448535]
[1768923184406,0.1649,3034.9,3033.4,3.5448535]
[1768923184814,0.00242218,3035.0,3033.4,3.5448535]
[1768923185008,0.00242218,3035.0,3033.5,2.528]
[1768923185314,0.16493,3034.5,3032.9,38.8448535]
[1768923185515,0.16493,3034.5,3033.0,2.528]
[1768923185905,0.16493,3034.4,3032.9,3.5448535]
[1768923186104,0.16493,3034.4,3033.1,2.529]
[1768923186315,0.16494,3034.3,3033.1,2.529]
[1768923186518,0.16495,3034.0,3032.7,2.529]
[1768923186815,0.16492,3034.6,3032.8,3.5448535]
[1768923187001,0.16492,3034.6,3033.0,3.5448535]
[1768923187417,0.00242218,3035.0,3033.5,3.5448535]
[1768923187618,0.00242218,3035.0,3033.7,3.5448535]
[1768923187915,0.16732218,3035.0,3033.7,3.5448535]
[1768923188314,0.26850328,3035.7,3033.7,3.5448535]
[1768923188614,0.16489,3035.2,3033.7,3.5448535]
[1768923188815,3.82280909,3036.0,3033.7,3.5448535]
[1768923189116,0.16489,3035.1,3033.8,6.0728535]
[1768923189308,0.1682138,3035.1,3033.9,3.5448535]
[1768923189906,0.1682138,3035.1,3034.0,2.528]
[1768923190108,0.1682138,3035.1,3034.0,6.0728535]
[1768923190314,0.16485,3035.8,3034.1,3.5448535]
[1768923190512,0.68038855,3035.7,3034.1,3.5448535]
[1768923190711,0.51552855,3035.6,3034.1,3.5448535]
[1768923190909,0.16488,3035.4,3034.1,3.5448535]
[1768923191316,0.16757627,3035.4,3034.1,3.54796373]
[1768923191503,3.55798097,3036.5,3034.1,3.54796373]
[1768923191809,0.51543771,3036.4,3034.1,3.54796373]
[1768923192013,0.16486,3035.6,3034.1,3.54796373]
[1768923192205,3.82811786,3036.5,3034.2,3.5448535]
[1768923192407,0.16488,3035.4,3034.2,6.0748535]
[1768923192613,0.16738942,3035.4,3034.3,3.5448535]
[1768923193410,3.82811786,3036.5,3034.3,3.5448535]
[1768923193616,0.16485,3035.8,3034.4,1.76519758]
[1768923193819,0.68029075,3035.7,3034.5,3.5448535]
[1768923194112,3.82811786,3036.5,3034.5,3.5448535]
[1768923194113,0.51542963,3035.6,3034.5,3.5448535]
[1768923194310,0.16489,3035.2,3034.1,0.00311023]
[1768923194510,0.1649,3034.9,3034.1,0.00311023]
[1768923195209,0.16491,3034.8,3034.1,0.00311023]
[1768923196621,0.00383306,3035.6,3034.1,0.00311023]
[1768923196823,0.16489,3035.2,3034.1,3.71500104]
[1768923197120,0.68042644,3035.1,3034.1,3.71500104]
[1768923197321,0.51553644,3035.0,3034.1,3.71500104]
[1768923197622,0.16489,3035.1,3034.1,3.71500104]
[1768923197822,0.00383306,3035.6,3034.1,3.71500104]
[1768923198117,0.51549765,3035.5,3034.1,3.71500104]
[1768923198318,0.51549765,3035.4,3034.2,2.537]
[1768923198517,0.51549765,3035.3,3034.3,3.71189081]
[1768923198718,0.00383306,3035.6,3034.3,3.71189081]
[1768923199323,0.16487,3035.4,3034.4,2.537]
[1768923200424,0.00383306,3035.6,3034.5,3.71189081]
[1768923201216,0.16487,3035.4,3034.5,3.71189081]
[1768923202025,0.16485,3036.0,3034.7,3.71189081]
[1768923202224,0.16485,3035.9,3034.7,3.71189081]
[1768923202933,0.16486,3035.7,3034.1,0.16805023]
[1768923203122,0.16908861,3035.7,3034.3,3.71189081]
[1768923203318,0.00422861,3035.7,3034.5,3.71189081]
[1768923204024,3.38284543,3036.6,3034.5,3.71189081]
[1768923204429,0.16484,3036.1,3034.5,3.71189081]
[1768923204622,3.38284543,3036.6,3034.5,3.71189081]
[1768923204828,3.38284543,3036.4,3034.1,0.00311023]
[1768923205023,3.38284543,3036.2,3034.2,2.535]
[1768923205231,0.16488,3035.3,3034.2,2.535]
[1768923205420,0.16489,3035.1,3034.1,2.53811023]
[1768923205731,0.16489,3035.2,3034.1,2.53811023]
[1768923206029,0.16489,3035.2,3034.2,3.71189081]
[1768923206538,0.16486,3035.7,3034.2,3.71189081]
[1768923207124,0.16486,3035.6,3034.2,3.71189081]
[1768923207324,3.38284543,3036.2,3034.3,2.537]
[1768923207526,3.38284543,3036.0,3034.3,2.537]
[1768923207824,3.38284543,3036.0,3034.3,3.71189081]
[1768923208025,3.38284543,3036.0,3034.4,2.537]
[1768923208429,0.16487,3035.5,3034.4,6.24889081]
[1768923208632,0.16484,3036.0,3034.5,3.71189081]
[1768923208824,0.16485,3035.9,3034.5,3.71189081]
[1768923210033,0.16485,3035.9,3034.6,35.3]
[1768923210241,0.16485,3035.9,3034.7,3.71189081]
[1768923210736,0.5052134,3035.8,3034.7,3.71189081]
[1768923210943,0.5052134,3035.7,3034.7,3.71189081]
[1768923211130,0.5052134,3035.6,3034.7,3.71189081]
[1768923211329,0.16487,3035.4,3034.7,2.539]
[1768923211834,0.67018625,3035.3,3034.5,2.54]
[1768923212038,0.50530625,3035.2,3034.5,2.54]
[1768923212728,0.50515234,3035.1,3034.5,2.54]
[1768923212938,0.16488,3035.3,3034.2,39.01189081]
[1768923212939,0.50515234,3035.0,3034.2,39.01189081]
[1768923213137,0.16488,3035.3,3034.3,2.543]
[1768923213327,0.50533319,3035.2,3034.3,2.543]
[1768923213529,0.16485,3035.9,3034.4,3.71189081]
[1768923213730,0.16486,3035.8,3034.4,3.71189081]
[1768923213940,0.16487,3035.6,3034.4,3.71189081]
[1768923214235,0.16487,3035.5,3034.4,3.71189081]
[1768923214431,0.16488,3035.3,3034.3,2.546]
[1768923214641,0.1649,3035.0,3034.3,2.546]
[1768923215339,0.16486,3035.7,3034.3,2.546]
[1768923215534,3.38284543,3035.7,3034.1,0.00311023]
[1768923215734,3.38284543,3035.5,3034.1,0.00311023]
[1768923216039,1.76519758,3035.9,3034.1,0.00311023]
[1768923216040,3.38284543,3035.3,3034.1,0.00311023]
[1768923216631,0.16491,3034.8,3034.1,0.00311023]
[1768923219244,3.38284543,3035.3,3033.3,2.545]
[1768923219245,0.16492,3034.6,3033.3,2.545]
[1768923220141,0.16492,3034.6,3033.3,2.54844944]
[1768923220342,0.16493,3034.4,3033.3,0.00344944]
[1768923221242,0.16493,3034.4,3033.3,3.71534025]
[1768923223344,0.16493,3034.4,3033.4,2.552]
[1768923223543,0.16493,3034.4,3033.5,2.553]
[1768923224338,0.16493,3034.4,3033.3,3.71534025]
[1768923224647,0.16493,3034.4,3033.6,2.554]
[1768923225742,0.16493,3034.4,3033.6,6.20211082]
[1768923226246,3.38284543,3035.4,3033.6,6.20211082]
[1768923226447,0.1649,3034.9,3033.6,6.20211082]
[1768923226646,0.50177262,3034.8,3033.6,6.20211082]
[1768923226946,0.1649,3034.9,3033.7,3.64811082]
[1768923227645,1.76167477,3035.8,3033.7,3.64811082]
[1768923227646,0.16492,3034.6,3033.7,2.558]
[1768923227947,0.16492,3034.6,3033.3,0.00344944]
[1768923228146,0.16492,3034.6,3033.4,2.558]
[1768923230142,3.44507871,3035.3,3033.4,2.558]
[1768923230344,3.44507871,3035.1,3033.4,6.20611082]
[1768923230547,0.50163537,3035.0,3033.4,6.20611082]
[1768923230750,0.50163537,3034.9,3033.4,6.20611082]
[1768923230941,0.50163537,3034.8,3033.4,6.20611082]
[1768923231141,0.16492,3034.6,3033.4,6.20611082]
[1768923231945,0.16492,3034.6,3033.4,3.64811082]
[1768923232144,0.16489,3035.1,3033.6,5.40978559]
[1768923232348,0.50174315,3035.0,3033.7,3.64811082]
[1768923232548,0.16489,3035.1,3033.7,3.64811082]
[1768923232943,0.1649,3035.0,3033.7,3.64811082]
[1768923233640,0.1649,3034.9,3033.7,3.64811082]
[1768923234349,5.20675348,3035.6,3033.7,3.64811082]
[1768923234350,0.16491,3034.8,3033.7,3.64811082]
[1768923234546,0.00416168,3036.4,3033.3,0.16843944]
[1768923234547,5.20675348,3035.2,3033.3,0.00344944]
[1768923234742,0.16492,3034.7,3033.4,2.562]
[1768923235139,0.16492,3034.6,3033.5,3.64811082]
[1768923235549,3.44507871,3035.0,3033.3,0.00344944]
[1768923235852,3.94707726,3034.9,3033.3,0.00344944]
[1768923236051,0.16494,3034.3,3033.3,0.00344944]
[1768923236746,0.16494,3034.2,3033.3,0.00344944]
[1768923236951,0.16495,3034.1,3033.3,0.00344944]
[1768923237147,0.16497,3033.7,3032.5,3.64811082]
[1768923237744,0.165,3033.2,3031.9,3.64811082]
[1768923237944,0.50176792,3033.1,3031.9,3.64811082]
[1768923238152,0.16501,3032.9,3031.9,2.56691285]
[1768923238354,0.26525931,3033.5,3031.9,0.00291285]
[1768923238355,3.71033802,3033.5,3031.9,0.00291285]
[1768923238547,0.16503,3032.6,3031.9,0.00291285]
[1768923238747,3.44507871,3033.2,3031.9,0.00291285]
[1768923238953,3.44507871,3033.0,3031.9,0.00291285]
[1768923239148,0.50127496,3032.9,3031.9,0.00291285]
[1768923239656,0.16504,3032.4,3030.9,3.64811082]
[1768923239855,0.16504,3032.4,3031.0,2.565]
[1768923240761,0.16507,3031.9,3031.0,0.0026556]
[1768923241062,0.16503,3032.6,3031.4,5.40978559]
[1768923241262,0.16503,3032.6,3031.5,2.567]
[1768923241663,0.16503,3032.6,3031.5,6.21511082]
[1768923242063,0.00372162,3032.6,3031.6,3.64811082]
[1768923242263,0.16499,3033.4,3031.9,3.64811082]
[1768923242562,0.16499,3033.4,3032.3,3.64811082]
[1768923242758,0.16499,3033.4,3032.4,2.566]
[1768923243261,0.00362627,3033.4,3032.6,5.40978559]
[1768923243469,0.16495,3034.1,3032.6,5.40978559]
[1768923243765,0.50036051,3034.0,3032.6,5.40978559]
[1768923243969,0.50027591,3033.9,3032.6,5.40978559]
[1768923244177,0.16495,3034.1,3032.6,5.40978559]
[1768923244474,0.66556733,3034.0,3032.6,5.40978559]
[1768923244677,0.50061733,3033.9,3032.6,5.40978559]
[1768923244875,0.16495,3034.0,3032.6,5.40978559]
[1768923245074,0.5009892,3033.9,3032.6,5.40978559]
[1768923245279,0.16495,3034.0,3032.6,5.40978559]
[1768923245478,0.16495,3034.0,3032.7,3.64811082]
[1768923245676,0.16492,3034.6,3033.2,3.64811082]
[1768923245886,0.16492,3034.6,3033.4,3.64811082]
[1768923246384,0.16493,3034.5,3032.9,3.64811082]
[1768923246575,0.16493,3034.5,3033.0,5.864]
[1768923246883,0.16740187,3034.5,3033.0,5.86816156]
[1768923247178,0.16740187,3034.5,3033.1,35.3]
[1768923247378,0.16740187,3034.5,3033.2,3.64811082]
[1768923248983,0.16493,3034.4,3033.2,6.21611082]
[1768923249483,0.16493,3034.4,3033.2,2.568]
[1768923249782,0.00247187,3034.5,3033.0,0.00416156]
[1768923249783,0.50197433,3034.3,3033.0,0.00416156]
[1768923249984,0.50197433,3034.2,3033.0,0.00416156]
[1768923250277,0.50197433,3034.1,3033.0,0.00416156]
[1768923250582,0.16496,3033.9,3033.0,0.00416156]
[1768923250883,0.16496,3033.8,3033.0,0.00416156]
[1768923251773,0.16740187,3034.5,3033.0,0.00416156]
[1768923251982,0.50251571,3034.4,3033.2,1.76167477]
[1768923252180,0.50251571,3034.3,3033.2,1.76167477]
[1768923252380,0.16740187,3034.5,3033.2,1.76167477]
[1768923252775,0.16740187,3034.5,3033.3,3.64811082]
[1768923252977,0.16740187,3034.5,3033.4,2.57]
[1768923254176,0.16493,3034.4,3033.3,3.64811082]
[1768923254381,0.66745505,3034.3,3033.1,2.57]
[1768923254575,0.50251505,3034.2,3033.1,2.57]
[1768923254775,0.16494,3034.3,3033.1,2.57]
[1768923254977,0.50241147,3034.2,3033.1,2.57]
[1768923255176,0.16494,3034.3,3033.1,2.57]
[1768923255377,0.50243577,3034.2,3033.1,2.57]
[1768923255581,0.16494,3034.3,3033.1,2.57]
[1768923255776,0.50257297,3034.2,3033.1,2.57]
[1768923255980,0.16494,3034.3,3033.1,2.57]
[1768923256184,0.50272446,3034.2,3033.1,2.569]
[1768923256485,0.16494,3034.3,3033.1,2.569]
[1768923256684,0.50286349,3034.2,3033.1,2.569]
[1768923256882,0.16494,3034.3,3033.1,2.569]
[1768923257086,0.50269883,3034.2,3033.1,2.569]
[1768923257287,0.00247187,3034.5,3033.2,5.29375751]
[1768923257483,0.00247187,3034.5,3033.3,3.53208274]
[1768923259990,0.00247187,3034.5,3033.6,1.76167477]
[1768923260987,1.76167477,3036.0,3033.1,5.5193966]
[1768923260988,3.66478746,3036.0,3034.0,5.29375751]
[1768923261187,0.16489,3035.2,3034.1,3.53208274]
[1768923261392,3.66478746,3035.6,3033.6,8.24415411]
[1768923261596,4.16788245,3035.5,3033.7,35.3]
[1768923261780,0.16488,3035.3,3033.4,3.299]
[1768923261985,3.66478746,3035.1,3033.5,2.568]
[1768923262184,0.16492,3034.6,3033.5,2.568]
[1768923262389,0.00242952,3035.3,3033.7,3.53208274]
[1768923262590,0.66818507,3035.2,3033.7,3.53208274]
[1768923262894,0.50329507,3035.1,3033.7,3.53208274]
[1768923265394,0.16491,3034.8,3033.7,3.53208274]
[1768923265584,0.16492,3034.6,3033.7,2.574]
[1768923266198,0.16492,3034.6,3033.5,2.575]
[1768923268589,0.16489,3035.2,3033.7,3.53208274]
[1768923268897,0.66739538,3035.1,3033.7,3.53208274]
[1768923269096,0.50250538,3035.0,3033.7,3.53208274]
[1768923269297,0.50250538,3034.9,3033.7,3.53208274]
[1768923269498,0.50250538,3034.8,3033.7,3.53208274]
[1768923269699,0.16489,3035.1,3033.7,3.53208274]
[1768923269898,0.50265843,3035.0,3033.7,3.53208274]
[1768923270097,0.50265843,3034.9,3033.7,3.53208274]
[1768923270399,0.50265843,3034.8,3033.7,3.53208274]
[1768923270599,0.66756843,3034.8,3033.8,2.579]
[1768923270793,0.66756843,3034.7,3033.9,2.58]
[1768923270993,0.16491,3034.7,3033.9,2.58]
[1768923271394,0.50339005,3034.6,3033.9,2.58]
[1768923271700,0.16491,3034.7,3033.9,2.58]
[1768923271898,0.50334703,3034.6,3033.9,2.58]
[1768923272099,0.16491,3034.7,3033.9,2.58]
[1768923272398,0.66851516,3034.6,3033.9,2.58]
[1768923272594,0.50359516,3034.5,3033.3,2.9503966]
[1768923272800,0.16495,3034.1,3033.2,2.58]
[1768923272997,0.16495,3034.1,3033.0,0.00416156]
[1768923273303,0.16495,3034.1,3033.1,2.58]
[1768923273491,0.50367614,3034.0,3033.1,2.58]
[1768923273687,0.16495,3034.1,3033.1,2.58]
[1768923273892,0.50363964,3034.0,3033.1,2.58]
[1768923274099,0.16495,3034.1,3033.0,0.00416156]
[1768923274294,0.50363032,3034.0,3033.1,2.582]
[1768923274501,0.16495,3034.0,3033.1,2.582]
[1768923275097,0.16493,3034.5,3033.1,2.582]
[1768923275296,0.50373294,3034.4,3033.0,3.5362443]
[1768923275498,0.66867294,3034.3,3033.2,2.585]
[1768923275796,0.50373294,3034.2,3033.2,2.585]
[1768923275995,0.16494,3034.3,3033.3,3.53208274]
[1768923276202,0.16491,3034.8,3033.6,3.53208274]
[1768923276997,0.16491,3034.7,3033.6,3.53208274]
[1768923277199,0.16492,3034.6,3033.6,3.53208274]
[1768923279605,0.16492,3034.6,3033.6,6.48247934]
[1768923280899,0.16492,3034.6,3033.7,3.53208274]
[1768923281207,0.00242952,3035.3,3033.7,3.53208274]
[1768923281500,0.16489,3035.1,3033.7,2.9503966]
[1768923281706,0.1649,3035.0,3033.8,3.53208274]
[1768923281897,0.00242952,3035.3,3033.9,2.588]
[1768923281898,0.1649,3034.9,3033.9,2.588]
[1768923282405,0.1649,3034.9,3033.9,6.12008274]
[1768923282604,0.00242952,3035.3,3033.9,11.17975751]
[1768923282908,0.00242952,3035.3,3033.9,12.36847934]
[1768923283698,0.00242952,3035.3,3034.0,2.9503966]
[1768923284405,0.00242952,3035.3,3034.1,3.37388459]
[1768923284607,0.00242952,3035.3,3034.2,5.96188459]
[1768923284800,0.00242952,3035.3,3034.2,8.91228119]
[1768923285311,0.00242952,3035.3,3034.2,5.96188459]
[1768923285499,0.00242952,3035.3,3033.9,2.9503966]
[1768923285704,3.63517179,3035.3,3034.0,2.588]
[1768923286401,0.16491,3034.7,3033.6,2.9503966]
[1768923286715,0.16493,3034.4,3033.3,2.588]
[1768923288008,0.49871481,3034.3,3033.3,2.588]
[1768923288202,0.49871481,3034.2,3033.3,2.588]
[1768923288398,0.49871481,3034.1,3033.3,2.588]
[1768923288708,3.63274227,3034.9,3033.3,2.588]
[1768923288904,0.49855344,3034.8,3033.3,6.02643489]
[1768923289110,0.49855344,3034.7,3033.3,6.02643489]
[1768923289310,0.49855344,3034.6,3033.3,6.02643489]
[1768923289512,0.49855344,3034.5,3033.3,6.02643489]
[1768923289710,3.79764227,3034.9,3033.3,6.02643489]
[1768923290011,0.16492,3034.5,3033.3,6.02643489]
[1768923290315,0.49856666,3034.4,3033.3,6.02643489]
[1768923290612,0.49856666,3034.3,3033.3,6.02643489]
[1768923290914,0.00242952,3035.3,3033.4,3.43843489]
[1768923291113,0.1649,3034.9,3033.4,3.43843489]
[1768923291413,0.00242952,3035.3,3033.7,3.43843489]
[1768923291811,0.00242952,3035.3,3033.7,6.38883149]
[1768923292009,0.00242952,3035.3,3033.8,3.43843489]
[1768923294311,0.16484,3036.0,3034.4,1.76098286]
[1768923294506,0.16484,3036.0,3034.6,3.43843489]
[1768923294815,0.16481,3036.6,3034.8,3.43843489]
[1768923295209,0.16718434,3036.6,3034.8,3.43843489]
[1768923296204,3.63511661,3036.6,3034.9,2.599]
[1768923296510,0.16483,3036.2,3034.9,2.599]
[1768923298413,0.16484,3036.1,3034.9,2.599]
[1768923298615,0.16484,3036.1,3034.9,6.03743489]
[1768923298818,0.16484,3036.1,3035.0,3.43843489]
[1768923300416,0.00237434,3036.6,3035.0,3.43843489]
[1768923300718,0.16481,3036.5,3035.0,3.43843489]
[1768923301718,0.00237434,3036.6,3035.0,3.60333489]
[1768923303309,0.00237434,3036.6,3035.0,3.43843489]
[1768923303513,0.16483,3036.2,3035.0,3.43843489]
[1768923303810,0.16483,3036.2,3035.1,2.614]
[1768923304011,0.16484,3036.0,3035.1,2.614]
[1768923304210,0.16486,3035.6,3034.5,3.43843489]
[1768923304414,0.16488,3035.4,3034.6,2.615]
[1768923304911,0.16484,3036.1,3034.7,3.43843489]
[1768923305114,0.00237434,3036.6,3035.0,3.43843489]
[1768923305412,0.16486,3035.7,3034.6,2.616]
[1768923306320,0.16483,3036.3,3034.7,3.43843489]
[1768923306917,0.00237434,3036.6,3034.7,3.60334489]
[1768923307123,0.16718434,3036.6,3034.8,3.43843489]
[1768923307425,0.16484,3036.1,3034.9,2.616]
[1768923307826,0.16487,3035.6,3035.0,2.616]
[1768923308018,0.16487,3035.6,3034.3,3.43843489]
[1768923308319,0.16487,3035.6,3034.4,5.913]
[1768923308518,3.63274227,3036.0,3034.2,3.297]
[1768923308717,0.16488,3035.3,3034.2,3.297]
[1768923308918,0.16488,3035.3,3034.3,2.617]
[1768923309112,0.16488,3035.3,3033.9,3.297]
[1768923309319,0.16488,3035.3,3034.0,2.617]
[1768923309917,0.16488,3035.3,3034.0,6.05543489]
[1768923310415,0.16488,3035.3,3034.1,2.619]
[1768923310826,0.1649,3034.9,3033.5,3.43843489]
[1768923311217,3.63274227,3035.2,3033.6,2.619]
[1768923311218,0.16491,3034.8,3033.6,2.619]
[1768923311418,0.16487,3035.4,3033.7,3.43843489]
[1768923311715,0.49270943,3035.3,3033.7,3.43843489]
[1768923311914,0.49270943,3035.2,3033.7,3.43843489]
[1768923312120,0.16487,3035.4,3033.7,3.43843489]
[1768923312328,0.49289341,3035.3,3033.8,3.43843489]
[1768923312529,3.63274227,3036.2,3033.8,3.43843489]
[1768923312823,0.16485,3035.8,3033.9,3.43843489]
[1768923313030,0.16485,3035.8,3034.0,3.43843489]
[1768923314028,0.16485,3035.8,3034.3,3.43843489]
[1768923314223,0.16485,3035.8,3034.5,3.43843489]
[1768923314429,0.16482,3036.4,3034.7,3.43843489]
[1768923314828,0.16482,3036.4,3034.8,3.43843489]
[1768923315024,0.00237434,3036.6,3035.1,3.68693104]
[1768923315332,0.00237434,3036.6,3035.3,3.68693104]
[1768923315528,0.00237434,3036.6,3035.5,3.68693104]
[1768923316525,0.00237434,3036.6,3035.6,9.60193104]
[1768923316931,0.00237434,3036.6,3035.7,3.68693104]
[1768923317632,0.16482,3036.5,3035.3,0.0040168]
[1768923317935,0.16482,3036.5,3035.4,2.618]
[1768923318433,0.16482,3036.5,3035.5,2.617]
[1768923318622,0.16482,3036.4,3035.3,0.0040168]
[1768923318826,0.16482,3036.4,3035.4,2.617]
[1768923319322,0.00237434,3036.6,3035.3,3.69094784]
[1768923319522,0.00237434,3036.6,3035.6,3.68693104]
[1768923319728,3.83338417,3037.4,3035.6,3.68693104]
[1768923319935,0.49398923,3037.3,3035.6,3.68693104]
[1768923320228,0.49398923,3037.2,3035.6,3.68693104]
[1768923320429,0.49398923,3037.1,3035.6,3.68693104]
[1768923320634,0.00366393,3037.1,3035.7,3.68693104]
[1768923321230,3.66861417,3038.4,3036.3,3.68693104]
[1768923321530,2.89085352,3039.5,3036.2,1.76098286]
[1768923321531,0.16468,3039.1,3037.1,3.68693104]
[1768923321725,3.93469142,3039.8,3037.9,3.68693104]
[1768923321923,3.927093,3039.8,3037.3,6.63732764]
[1768923322234,0.16467,3039.1,3037.4,3.68693104]
[1768923322534,0.16467,3039.1,3037.5,5.913]
[1768923322842,3.66861417,3039.3,3037.4,3.68693104]
[1768923323136,0.16472,3038.3,3037.3,0.00412049]
[1768923324331,3.83329417,3039.0,3037.3,0.00412049]
[1768923324526,3.83329417,3039.0,3037.3,3.69105153]
[1768923324527,0.16468,3039.0,3037.3,3.69105153]
[1768923324835,0.16468,3039.0,3037.4,5.913]
[1768923325131,0.16468,3039.0,3037.4,9.59993104]
[1768923325335,0.16468,3039.0,3037.5,3.68693104]
[1768923325629,0.16469,3038.9,3037.3,0.00412049]
[1768923325829,0.16469,3038.9,3037.4,2.617]
[1768923326231,0.16469,3038.9,3037.4,6.30393104]
[1768923326436,0.16469,3038.9,3037.5,3.68693104]
[1768923328338,0.1647,3038.6,3037.3,0.00412049]
[1768923328530,0.16472,3038.3,3037.3,0.00412049]
[1768923328729,0.16473,3038.1,3037.3,0.00412049]
[1768923328927,0.16474,3038.0,3037.3,0.00412049]
[1768923329734,0.16475,3037.8,3035.9,3.68693104]
[1768923329928,3.66861417,3038.3,3036.2,3.295]
[1768923330340,3.66861417,3038.3,3036.3,3.68693104]
[1768923330341,0.16472,3038.2,3036.3,3.68693104]
[1768923330534,3.66861417,3038.3,3036.3,3.68693104]
[1768923330734,3.66861417,3038.3,3036.3,3.68927195]
[1768923330929,0.16475,3037.8,3036.3,3.68927195]
[1768923331136,0.16476,3037.5,3036.3,0.00234091]
[1768923331333,0.16879757,3037.5,3036.3,0.00234091]
[1768923331935,0.16477,3037.4,3036.3,0.00234091]
[1768923332644,0.1648,3036.9,3036.3,0.00234091]
[1768923332842,0.1648,3036.9,3035.8,2.616]
[1768923333034,3.66861417,3037.3,3035.2,3.68693104]
[1768923333233,0.16482,3036.4,3035.2,2.616]
[1768923333536,3.66861417,3037.0,3034.7,3.68693104]
[1768923333537,0.16484,3036.1,3034.7,6.98193104]
[1768923333735,0.16484,3036.0,3034.7,3.69080704]
[1768923333932,0.16484,3036.0,3034.8,2.616]
[1768923334639,0.16486,3035.7,3034.7,0.003876]
[1768923335444,0.16487,3035.5,3034.7,0.003876]
[1768923336345,3.93466548,3037.0,3034.7,3.69080704]
[1768923336639,0.16486,3035.7,3034.7,0.003876]
[1768923336940,0.16488,3035.3,3034.7,0.003876]
[1768923337140,0.16815374,3035.3,3034.7,0.003876]
[1768923337849,0.00327374,3035.3,3034.7,0.003876]
[1768923338041,0.16484,3036.0,3034.7,0.003876]
[1768923338546,0.16485,3035.9,3034.7,0.003876]
[1768923338948,0.16869084,3035.9,3034.7,0.003876]
[1768923339746,0.00384084,3035.9,3034.7,0.003876]
[1768923339944,0.00384084,3035.9,3034.7,3.69080704]
[1768923340638,0.00384084,3035.9,3034.7,0.003876]
[1768923340840,0.16486,3035.8,3034.7,0.003876]
[1768923341033,0.16486,3035.8,3034.7,3.69080704]
[1768923341236,3.66861417,3036.6,3034.7,3.69080704]
[1768923341237,0.16481,3036.6,3035.1,5.4479139]
[1768923341436,0.16481,3036.6,3035.2,3.68693104]
[1768923341638,3.66861417,3037.8,3035.2,3.68693104]
[1768923341946,0.16478,3037.1,3035.7,3.68693104]
[1768923342246,0.00262499,3037.1,3035.8,3.68693104]
[1768923342448,0.16477,3037.4,3035.8,3.68693104]
[1768923342942,3.66861417,3038.4,3036.3,3.68693104]
[1768923343146,0.16475,3037.7,3036.3,3.68693104]
[1768923343342,0.16779275,3037.7,3036.4,3.68693104]
[1768923343545,0.16779275,3037.7,3036.4,7.51993104]
[1768923344151,0.26272933,3038.7,3036.5,7.25002042]
[1768923344351,0.16474,3037.9,3036.5,3.41702042]
[1768923344650,0.16475,3037.7,3036.3,2.614]
[1768923344852,0.16475,3037.7,3036.3,4.3721476]
[1768923345248,0.16476,3037.5,3036.3,1.7581476]
[1768923345553,0.0031244,3037.7,3036.1,2.614]
[1768923345554,0.16477,3037.4,3036.1,2.614]
[1768923345753,0.16477,3037.4,3036.3,1.7581476]
[1768923346453,0.16477,3037.4,3036.1,2.614]
[1768923346954,0.16477,3037.4,3036.0,3.41702042]
[1768923347253,0.16477,3037.4,3036.1,2.613]
[1768923347753,0.0031244,3037.7,3036.3,1.7581476]
[1768923347953,0.0031244,3037.7,3036.7,1.7581476]
[1768923348256,0.0031244,3037.7,3036.8,2.612]
[1768923350658,0.0031244,3037.7,3036.7,1.7581476]
[1768923350861,0.1678744,3037.7,3036.6,2.611]
[1768923351858,0.1678744,3037.7,3036.3,1.7581476]
[1768923352164,0.1678744,3037.7,3036.4,2.611]
[1768923353372,0.0031244,3037.7,3036.7,1.7581476]
[1768923354066,0.16473,3038.1,3036.7,5.2394488]
[1768923354265,3.6160926,3038.7,3036.8,3.4813012]
[1768923354266,3.7807926,3038.7,3036.8,3.4813012]
[1768923354568,0.48753811,3038.6,3036.8,3.4813012]
[1768923354864,4.10363071,3038.5,3036.3,3.4813012]
[1768923355070,0.16475,3037.8,3036.4,5.905]
[1768923355473,3.6160926,3038.3,3036.4,5.905]
[1768923355663,0.16475,3037.8,3036.5,2.609]
[1768923356170,0.16475,3037.8,3036.6,2.609]
[1768923357368,0.16476,3037.6,3036.3,3.4813012]
[1768923357564,3.6160926,3037.7,3035.8,1.7581476]
[1768923357770,0.16481,3036.6,3035.5,3.295]
[1768923357970,3.6160926,3037.2,3035.5,3.295]
[1768923358172,0.4880326,3037.1,3035.5,3.295]